[Event "1000GM Spring Break Schev-A 2024"]
[Site "San Jose"]
[Date "2024.03.30"]
[Round "1.1"]
[White "Rajaram, Rohan"]
[Black "Garcia Guerrero, Isaac Antonio"]
[Result "0-1"]
[ECO "E04"]
[WhiteElo "2198"]
[BlackElo "2300"]
[Annotator "RC"]
[PlyCount "116"]
[EventDate "2024.03.28"]
[EventType "schev"]
[EventCountry "USA"]
[SourceTitle "playchess.com"]
[Source "ChessBase"]
[SourceQuality "1"]
[TimeControl "5400+30"]

1. d4 {[%emt 0:00:02]} Nf6 {[%emt 0:00:20]} 2. c4 {[%emt 0:00:13]} e6 {[%emt 0:00:16]} 3. g3 {[%emt 0:00:16]} d5 {[%emt 0:00:20]} 4. Bg2 {[%emt 0:00:18]} dxc4 {[%emt 0:00:53]} 5. Nf3 {[%emt 0:00:26]} Bd7 {[%emt 0:00:42]} 6. Ne5 {[%emt 0:02:06]} Nc6 {[%emt 0:00:44]} 7. Nxc4 {[%emt 0:00:53]} Bb4+ {[%emt 0:03:43]} 8. Bd2 {[%emt 0:02:37]} O-O {[%emt 0:10:58]} 9. O-O {[%emt 0:04:02]} Be7 {[%emt 0:08:35]} 10. Bc3 {[%emt 0:09:20]} b5 {[%emt 1:08:59]} 11. Ne5 Nd5 12. Nxc6 Bxc6 13. Be1 Bb7 14. Nd2 c5 {[%emt 0:00:00]} 15. dxc5 {[%emt 1:17:47]} Bxc5 {[%emt 0:02:30]} 16. Nb3 {[%emt 0:00:00]} Bb6 {[%emt 0:00:30]} 17. e4 {[%emt 0:00:00]} Nf6 {[%emt 0:00:00]} 18. Bb4 {[%emt 0:00:00]} Qxd1 {[%emt 0:00:00]} 19. Rfxd1 {[%emt 0:00:00]} Rfc8 {[%emt 0:00:00]} 20. Nd4 {[%emt 0:00:00]} Rc4 {[%emt 0:00:00]} 21. Bc3 {[%emt 0:00:00]} b4 {[%emt 0:00:00]} 22. Bf1 {[%emt 0:00:00]} bxc3 {[%emt 0:00:00]} 23. Bxc4 {[%emt 0:00:00]} cxb2 {[%emt 0:00:00]} 24. Rab1 {[%emt 0:00:00]} Nxe4 {[%emt 0:00:00]} 25. Rxb2 {[%emt 0:05:00]} Rd8 26. Be2 {[%emt 0:00:00]} Nc3 {[%emt 0:00:00]} 27. Rc1 Bxd4 28. Rxc3 {[%emt 0:00:00]} Bxc3 {[%emt 0:00:00]} 29. Rxb7 {[%emt 0:00:00]} Bd4 {[%emt 0:00:00]} 30. a4 {[%emt 0:00:00]} g6 {[%emt 0:00:00]} 31. Bb5 {[%emt 0:00:00]} Rc8 {[%emt 0:00:00]} 32. Rd7 {[%emt 0:00:00]} e5 {[%emt 0:00:00]} 33. Bd3 {[%emt 0:00:00]} f5 {[%emt 0:00:10]} 34. h4 {[%emt 0:00:00]} Rc3 {[%emt 0:00:15]} 35. Be2 {[%emt 0:00:00]} Rxg3+ {[%emt 0:00:22]} 36. Kh2 {[%emt 0:00:00]} Rc3 {[%emt 0:00:52]} 37. Kg2 {[%emt 0:00:00]} f4 {[%emt 0:02:46]} 38. h5 {[%emt 0:00:00]} gxh5 {[%emt 0:01:09]} 39. Bf3 {[%emt 0:00:00]} Rc2 {[%emt 0:03:40]} 40. Bd5+ {[%emt 0:00:00]} Kf8 {[%emt 0:00:06]} 41. Rxh7 {[%emt 0:00:00]} Rxf2+ {[%emt 0:00:08]} 42. Kh3 {[%emt 0:00:00]} Rf1 {[%emt 0:00:37]} 43. Kh4 {[%emt 0:00:26]} Rg1 {[%emt 0:01:32]} 44. Kxh5 {[%emt 0:00:17]} Ke8 {[%emt 0:00:39]} 45. Rb7 {[%emt 0:00:41]} Rg3 {[%emt 0:00:26]} 46. Rb3 {[%emt 0:01:14]} Be3 {[%emt 0:00:42]} 47. Rb7 f3 {[%emt 0:00:27]} 48. Kh4 f2 {[%emt 0:02:09]} 49. Rf7 {[%emt 0:09:22]} Bf4 {[%emt 0:00:00]} 50. Bc4 {[%emt 0:00:00]} Rc3 {[%emt 0:00:00]} 51. Bf1 {[%emt 0:00:00]} Kxf7 {[%emt 0:00:00]} 52. Kg4 {[%emt 0:00:00]} Kf6 {[%emt 0:00:00]} 53. Be2 {[%emt 0:02:00]} Rg3+ {[%emt 0:00:00]} 54. Kh5 {[%emt 0:00:00]} e4 {[%emt 0:00:00]} 55. Bc4 {[%emt 0:00:00]} Kf5 {[%emt 0:00:20]} 56. Bf1 {[%emt 0:00:00]} Rg1 {[%emt 0:00:25]} 57. Bh3+ {[%emt 0:00:00]} Kf6 {[%emt 0:00:12]} 58. Bg4 {[%emt 0:00:00]} f1=Q {[%emt 0:00:13]} 0-1

[Event "1000GM Spring Break Schev-A 2024"]
[Site "San Jose"]
[Date "2024.03.30"]
[Round "1.2"]
[White "Sivakumar, Shaashwath"]
[Black "Arenas, David"]
[Result "1/2-1/2"]
[ECO "E11"]
[WhiteElo "2277"]
[BlackElo "2368"]
[Annotator "RC"]
[PlyCount "88"]
[EventDate "2024.03.28"]
[EventType "schev"]
[EventCountry "USA"]
[SourceTitle "playchess.com"]
[Source "ChessBase"]
[SourceQuality "1"]
[TimeControl "5400+30"]

1. d4 {[%emt 0:00:03]} Nf6 {[%emt 0:00:52]} 2. c4 {[%emt 0:00:12]} e6 {[%emt 0:00:08]} 3. g3 {[%emt 0:00:05]} Bb4+ {[%emt 0:00:11]} 4. Bd2 {[%emt 0:00:08]} Qe7 {[%emt 0:00:27]} 5. Nf3 {[%emt 1:32:32]} Nc6 {[%emt 0:00:46]} 6. Nc3 {[%emt 0:00:30]} O-O {[%emt 1:31:06]} 7. Bg2 {[%emt 0:00:30]} Bxc3 {[%emt 0:00:00]} 8. Bxc3 {[%emt 0:00:30]} Ne4 {[%emt 0:00:00]} 9. Rc1 {[%emt 0:00:00]} a5 {[%emt 0:00:00]} 10. O-O {[%emt 0:00:00]} Nxc3 {[%emt 0:00:00]} 11. Rxc3 {[%emt 0:00:00]} d6 {[%emt 0:00:00]} 12. d5 {[%emt 0:00:00]} Nb4 {[%emt 0:00:00]} 13. a3 {[%emt 0:00:00]} Na6 {[%emt 0:00:00]} 14. dxe6 {[%emt 0:03:00]} fxe6 {[%emt 0:00:00]} 15. Re3 {[%emt 0:00:00]} e5 {[%emt 0:00:00]} 16. Nd4 {[%emt 0:01:00]} c6 {[%emt 0:00:00]} 17. f4 {[%emt 0:00:30]} Bg4 {[%emt 0:00:00]} 18. h3 {[%emt 0:00:00]} Bh5 {[%emt 0:00:00]} 19. Nf3 {[%emt 0:00:00]} Bxf3 {[%emt 0:00:00]} 20. exf3 {[%emt 0:01:30]} Qc7 {[%emt 0:00:00]} 21. fxe5 {[%emt 0:00:00]} dxe5 {[%emt 0:00:00]} 22. Qe2 {[%emt 0:01:00]} Rae8 {[%emt 0:00:00]} 23. f4 {[%emt 0:00:00]} Nc5 {[%emt 0:00:00]} 24. Kh1 {[%emt 0:00:00]} Re6 {[%emt 0:09:00]} 25. b4 {[%emt 0:00:00]} axb4 {[%emt 0:00:00]} 26. axb4 {[%emt 0:00:00]} Nd7 {[%emt 0:00:00]} 27. c5 {[%emt 0:02:30]} Rfe8 {[%emt 0:00:00]} 28. Re1 {[%emt 0:00:00]} Kh8 {[%emt 0:00:00]} 29. Bf3 {[%emt 0:00:00]} e4 {[%emt 0:00:00]} 30. Bh5 {[%emt 0:00:00]} Ra8 {[%emt 0:00:00]} 31. Rxe4 {[%emt 0:00:00]} Rxe4 {[%emt 0:00:00]} 32. Qxe4 {[%emt 0:00:00]} Nf6 {[%emt 0:00:00]} 33. Qe6 {[%emt 0:03:00]} Qb8 {[%emt 0:02:38]} 34. Bf3 {[%emt 0:00:00]} Qa7 {[%emt 0:00:20]} 35. Qe3 {[%emt 0:00:00]} Qa3 {[%emt 0:01:50]} 36. Qxa3 Rxa3 37. Kg2 {[%emt 0:02:00]} Rb3 {[%emt 0:01:42]} 38. Rd1 {[%emt 0:00:00]} h5 {[%emt 0:00:00]} 39. Rd4 {[%emt 0:00:00]} Rb2+ {[%emt 0:00:16]} 40. Kf1 {[%emt 0:00:00]} Rb3 {[%emt 0:00:29]} 41. Kf2 {[%emt 0:00:00]} Rb2+ {[%emt 0:00:01]} 42. Be2 {[%emt 0:00:00]} Nd5 {[%emt 0:00:22]} 43. Kf1 {[%emt 0:01:02]} Ne3+ {[%emt 0:00:20]} 44. Kf2 {[%emt 0:00:06]} Nd5 {[%emt 0:00:00]} 1/2-1/2

[Event "1000GM Spring Break Schev-A 2024"]
[Site "San Jose"]
[Date "2024.03.30"]
[Round "1.3"]
[White "Liu, Patrick"]
[Black "Alarcon Bahamondez, Roberto Ignacio"]
[Result "0-1"]
[ECO "A62"]
[WhiteElo "2068"]
[BlackElo "2335"]
[Annotator "RC"]
[PlyCount "100"]
[EventDate "2024.03.28"]
[EventType "schev"]
[EventCountry "USA"]
[SourceTitle "playchess.com"]
[Source "ChessBase"]
[SourceQuality "1"]
[TimeControl "5400+30"]

1. d4 {[%emt 0:00:03]} Nf6 {[%emt 0:00:21]} 2. c4 {[%emt 0:00:09]} e6 {[%emt 0:00:11]} 3. g3 {[%emt 0:00:07]} c5 {[%emt 0:01:08]} 4. d5 {[%emt 0:00:05]} exd5 {[%emt 0:00:06]} 5. cxd5 {[%emt 0:00:02]} d6 {[%emt 0:00:14]} 6. Bg2 {[%emt 0:00:25]} g6 {[%emt 0:00:42]} 7. Nc3 {[%emt 0:00:12]} Bg7 {[%emt 0:00:09]} 8. Nf3 {[%emt 0:00:02]} O-O {[%emt 0:00:10]} 9. O-O {[%emt 0:00:04]} a6 {[%emt 0:00:54]} 10. a4 {[%emt 0:00:09]} Re8 {[%emt 0:00:08]} 11. Bf4 {[%emt 0:00:05]} Bf8 {[%emt 0:01:27]} 12. Nd2 {[%emt 0:04:13]} Nh5 {[%emt 0:02:54]} 13. Be3 {[%emt 0:02:07]} Nd7 {[%emt 0:02:00]} 14. Nc4 {[%emt 0:06:22]} Ne5 {[%emt 0:00:51]} 15. Nxe5 {[%emt 0:00:52]} Rxe5 {[%emt 0:00:06]} 16. Bd2 {[%emt 0:02:22]} Re8 {[%emt 0:09:32]} 17. e4 {[%emt 0:04:04]} Bg7 {[%emt 0:10:45]} 18. f4 {[%emt 0:10:53]} Bd4+ {[%emt 0:15:48]} 19. Kh1 {[%emt 0:00:10]} Bd7 {[%emt 0:00:14]} 20. Qf3 {[%emt 0:06:41]} Ng7 {[%emt 0:20:53]} 21. Rae1 {[%emt 0:02:40]} f5 {[%emt 0:04:11]} 22. b3 {[%emt 0:09:33]} Qb6 {[%emt 0:03:19]} 23. exf5 {[%emt 0:09:02]} gxf5 {[%emt 0:01:13]} 24. Ne2 {[%emt 0:00:16]} Bf6 {[%emt 0:00:35]} 25. Bc3 {[%emt 0:00:45]} Qd8 {[%emt 0:00:41]} 26. a5 {[%emt 0:11:35]} Bb5 {[%emt 0:00:34]} 27. Bxf6 {[%emt 0:04:56]} Qxf6 {[%emt 0:00:13]} 28. Rg1 {[%emt 0:00:15]} Qe7 {[%emt 0:04:17]} 29. Bf1 {[%emt 0:03:18]} Qe3 {[%emt 0:21:24]} 30. Kg2 {[%emt 0:01:36]} Qd2 {[%emt 0:00:00]} 31. Kf2 {[%emt 0:03:06]} Re7 {[%emt 0:00:00]} 32. g4 {[%emt 0:01:09]} Rf8 {[%emt 0:00:00]} 33. g5 {[%emt 0:03:38]} Rfe8 {[%emt 0:00:00]} 34. Rg3 {[%emt 0:01:01]} Re4 {[%emt 0:00:00]} 35. g6 {[%emt 0:05:26]} Rxf4 {[%emt 0:00:00]} 36. gxh7+ {[%emt 0:00:31]} Kh8 {[%emt 0:00:00]} 37. Qxf4 {[%emt 0:00:47]} Rxe2+ {[%emt 0:00:00]} 38. Bxe2 {[%emt 0:00:15]} Qxf4+ {[%emt 0:00:00]} 39. Kg1 {[%emt 0:00:05]} Qd2 {[%emt 0:00:00]} 40. Kf1 {[%emt 0:01:12]} f4 {[%emt 0:00:00]} 41. Rf3 {[%emt 0:00:47]} Nf5 {[%emt 0:00:00]} 42. Bxb5 {[%emt 0:00:47]} axb5 {[%emt 0:00:00]} 43. Re2 {[%emt 0:01:43]} Qxd5 {[%emt 0:00:00]} 44. Rxf4 {[%emt 0:00:59]} Qh1+ {[%emt 0:00:00]} 45. Kf2 {[%emt 0:00:02]} Qxh2+ {[%emt 0:00:00]} 46. Kf3 {[%emt 0:00:01]} Nd4+ {[%emt 0:00:00]} 47. Rxd4 {[%emt 0:00:17]} Qh1+ {[%emt 0:00:00]} 48. Kf2 {[%emt 0:00:45]} cxd4 {[%emt 0:00:00]} 49. Re8+ {[%emt 0:00:08]} Kxh7 {[%emt 0:00:00]} 50. Re7+ {[%emt 0:00:06]} Kg8 {[%emt 0:00:00]} 0-1

[Event "1000GM Spring Break Schev-A 2024"]
[Site "San Jose"]
[Date "2024.03.30"]
[Round "1.4"]
[White "Jimenez Garcia, Emmanuel"]
[Black "Yan, Nathan"]
[Result "1-0"]
[ECO "E14"]
[WhiteElo "2421"]
[BlackElo "2185"]
[Annotator "TA"]
[PlyCount "41"]
[EventDate "2024.03.28"]
[EventType "schev"]
[EventCountry "USA"]
[SourceTitle "playchess.com"]
[Source "ChessBase"]
[SourceQuality "1"]
[TimeControl "5400+30"]

{[%evp 18,41,14,14,14,0,20,18,12,0,7,0,33,33,54,29,29,-40,137,137,242,219,461,452,445,440]} 1. Nf3 {[%emt 0:00:06]} Nf6 {[%emt 0:10:47]} 2. d4 {[%emt 0:00:45]} e6 {[%emt 0:01:05]} 3. e3 {[%emt 0:00:46]} d5 {[%emt 0:02:29]} 4. Bd3 {[%emt 0:00:10]} Be7 {[%emt 0:01:02]} 5. O-O {[%emt 0:00:37]} O-O {[%emt 0:00:52]} 6. b3 {[%emt 0:00:41]} b6 {[%emt 0:00:37]} 7. Bb2 {[%emt 0:00:39]} Bb7 {[%emt 0:00:21]} 8. Nbd2 {[%emt 0:03:15]} Nbd7 {[%emt 0:01:38]} 9. Qe2 {[%emt 0:06:37]} c5 {[%emt 0:02:56]} 10. c4 {[%emt 0:06:06]} Rc8 {[%emt 0:03:05]} 11. Rac1 {[%emt 0:02:47]} (11. Rfd1 {feels hotter.} dxc4 12. Nxc4 cxd4 13. Nxd4 Qc7 14. Rac1) 11... Re8 {[%emt 0:06:14]} 12. cxd5 {[%emt 0:11:53]} Nxd5 {[%emt 0:03:30] The position is equal.} 13. Nc4 {[%emt 0:01:02]} cxd4 {[%emt 0:03:27]} 14. Bxd4 {[%emt 0:03:35]} Nc5 {[%emt 0:02:59]} 15. Bb1 {[%emt 0:01:53]} Bf6 {[%emt 0:05:36]} 16. Rfd1 {[%emt 0:13:07] Hoping for e4.} Bxd4 {[%emt 0:07:50]} 17. Rxd4 {[%emt 0:03:57]} (17. Nxd4 $11 f5 18. Qd2) 17... Ba6 $2 {[%emt 0:11:37] [#]} (17... b5 $15 {stays ahead.} 18. Rdd1 Qe7 (18... bxc4 19. bxc4 $11)) 18. e4 $1 $16 {[%emt 0:04:35][%cal Be3e4,Be4e5][%mdl 32]} Nf4 {[%emt 0:03:56]} (18... b5 $16 {is a better defense.}) 19. Qd2 $18 {[%emt 0:08:29]} Qf6 {[%emt 0:00:59]} (19... Qc7 {was worth a try.}) 20. e5 {[%emt 0:01:05]} Nh3+ {[%emt 0:04:44]} 21. Kh1 {[%emt 0:28:55] Weighted Error Value: White=0.11 (very precise) /Black=0.75.  Mistake:       	White=1     	Black=3      Inaccurate:     	---       	Black=1      OK:         	White=4     	Black=2      Best:        	White=1     	Black=1      Strong:       	White=1     	---} 1-0

[Event "1000GM Spring Break Schev-A 2024"]
[Site "San Jose"]
[Date "2024.03.30"]
[Round "1.5"]
[White "Zuluaga Mancilla, Cesar"]
[Black "Tang, Dylan"]
[Result "0-1"]
[ECO "D37"]
[WhiteElo "2217"]
[BlackElo "2152"]
[Annotator "ChessBase"]
[PlyCount "56"]
[EventDate "2024.03.28"]
[EventType "schev"]
[EventCountry "USA"]
[SourceTitle "playchess.com"]
[Source "ChessBase"]
[SourceQuality "1"]
[TimeControl "5400+30"]

1. d4 {[%emt 0:03:52]} d5 {[%emt 0:01:30]} 2. Nf3 {[%emt 0:00:05]} Nf6 {[%emt 0:00:05]} 3. c4 {[%emt 0:00:28]} e6 {[%emt 0:00:19]} 4. Nc3 {[%emt 0:01:05]} Be7 {[%emt 0:00:15]} 5. Qb3 {[%emt 0:01:32]} dxc4 {[%emt 0:11:32]} 6. Qxc4 {[%emt 0:00:36]} a6 {[%emt 0:01:21]} 7. a4 {[%emt 0:06:34]} b5 {[%emt 0:02:21]} 8. Qd3 {[%emt 0:01:57]} b4 {[%emt 0:04:40]} 9. Ne4 {[%emt 0:01:24]} Nxe4 {[%emt 0:04:44]} 10. Qxe4 {[%emt 0:00:09]} Ra7 {[%emt 0:00:06]} 11. Qc2 {[%emt 0:07:44]} Bb7 {[%emt 0:04:23]} 12. Bf4 {[%emt 0:04:58]} O-O {[%emt 0:06:48]} 13. e3 {[%emt 0:03:53]} c5 {[%emt 0:07:12]} 14. dxc5 {[%emt 0:03:45]} Qa5 {[%emt 0:00:47]} 15. Bd6 {[%emt 0:21:18]} Bxd6 {[%emt 0:08:15]} 16. cxd6 {[%emt 0:00:06]} Rc8 {[%emt 0:00:10]} 17. Qd2 {[%emt 0:00:28]} Bxf3 {[%emt 0:03:09]} 18. gxf3 {[%emt 0:00:11]} Rd7 {[%emt 0:00:06]} 19. Rg1 {[%emt 0:06:26]} Rcd8 {[%emt 0:06:41]} 20. Qd4 {[%emt 0:16:37]} e5 {[%emt 0:06:35]} 21. Rg5 {[%emt 0:10:44]} Nc6 {[%emt 0:03:16]} 22. Qc4 {[%emt 0:00:09]} b3+ {[%emt 0:00:29]} 23. Qc3 {[%emt 0:04:01]} Nb4 {[%emt 0:00:11]} 24. Rd1 {[%emt 0:00:29]} Nc2+ {[%emt 0:01:06]} 25. Ke2 {[%emt 0:00:02]} Qxc3 {[%emt 0:01:02]} 26. bxc3 {[%emt 0:00:03]} b2 {[%emt 0:00:09]} 27. Rb1 {[%emt 0:00:37]} Rxd6 {[%emt 0:00:06]} 28. f4 {[%emt 0:00:16]} e4 {[%emt 0:00:18]} 0-1

[Event "1000GM Spring Break Schev-A 2024"]
[Site "San Jose"]
[Date "2024.03.31"]
[Round "2.1"]
[White "Arenas, David"]
[Black "Rajaram, Rohan"]
[Result "1-0"]
[ECO "B50"]
[WhiteElo "2368"]
[BlackElo "2198"]
[Annotator "RC"]
[PlyCount "100"]
[EventDate "2024.03.28"]
[EventType "schev"]
[EventCountry "USA"]
[SourceTitle "playchess.com"]
[Source "ChessBase"]
[SourceQuality "1"]
[TimeControl "5400+30"]

1. e4 {[%emt 0:01:51]} c5 {[%emt 0:02:07]} 2. Nf3 {[%emt 0:00:30]} d6 {[%emt 0:00:07]} 3. c3 {[%emt 0:00:02]} Nf6 {[%emt 0:00:49]} 4. h3 {[%emt 0:00:04]} g6 {[%emt 0:01:47]} 5. Bd3 {[%emt 0:00:04]} Bg7 {[%emt 0:00:10]} 6. Bc2 {[%emt 0:00:12]} O-O {[%emt 0:00:25]} 7. O-O {[%emt 0:00:03]} b6 {[%emt 0:01:26]} 8. d4 {[%emt 0:00:31]} cxd4 {[%emt 0:01:16]} 9. cxd4 {[%emt 0:00:05]} Bb7 {[%emt 0:00:26]} 10. Re1 {[%emt 0:00:39]} e6 {[%emt 0:02:39]} 11. Nc3 {[%emt 0:00:24]} a6 {[%emt 0:01:53]} 12. Bf4 {[%emt 0:02:08]} b5 {[%emt 0:04:03]} 13. Qd2 {[%emt 0:00:16]} Nc6 {[%emt 0:02:03]} 14. a4 b4 {[%emt 1:18:19]} 15. Na2 {[%emt 1:31:11]} a5 {[%emt 0:00:30]} 16. Nc1 {[%emt 0:00:30]} Rc8 {[%emt 0:00:30]} 17. Nb3 {[%emt 0:00:30]} Re8 {[%emt 0:00:30]} 18. Bd3 {[%emt 0:00:30]} Na7 {[%emt 0:00:00]} 19. Qe2 {[%emt 0:00:00]} Qb6 {[%emt 0:00:00]} 20. Nfd2 {[%emt 0:00:00]} d5 {[%emt 0:00:00]} 21. e5 {[%emt 0:00:00]} Nd7 {[%emt 0:00:00]} 22. h4 {[%emt 0:00:00]} Nc6 {[%emt 0:02:30]} 23. Bb5 {[%emt 0:02:30]} Rc7 {[%emt 0:00:30]} 24. Be3 {[%emt 0:00:00]} Rec8 {[%emt 0:00:00]} 25. Nc4 {[%emt 0:00:00]} Qa7 {[%emt 0:00:00]} 26. Nd6 {[%emt 0:00:00]} Rb8 {[%emt 0:00:00]} 27. Rac1 {[%emt 0:00:00]} Ba8 {[%emt 0:00:00]} 28. Rc2 {[%emt 0:00:00]} Ne7 {[%emt 0:00:00]} 29. Rec1 Rxc2 {[%emt 0:03:00]} 30. Qxc2 {[%emt 0:03:30]} Nf5 {[%emt 0:00:00]} 31. Qc7 {[%emt 0:00:00]} Qxc7 {[%emt 0:00:00]} 32. Rxc7 {[%emt 0:00:00]} Nb6 {[%emt 0:00:00]} 33. Nxf5 {[%emt 0:00:00]} gxf5 {[%emt 0:00:00]} 34. Nxa5 {[%emt 0:00:00]} Rc8 {[%emt 0:00:00]} 35. Rxc8+ {[%emt 0:00:00]} Nxc8 {[%emt 0:00:00]} 36. Bc6 {[%emt 0:00:00]} Nb6 {[%emt 0:00:00]} 37. b3 {[%emt 0:00:00]} Bf8 {[%emt 0:00:00]} 38. Bd2 {[%emt 0:00:00]} f6 {[%emt 0:00:00]} 39. f4 {[%emt 0:00:00]} Kf7 {[%emt 0:00:00]} 40. Bxa8 {[%emt 0:00:00]} Nxa8 {[%emt 0:00:00]} 41. Nc6 {[%emt 0:00:00]} fxe5 {[%emt 0:00:00]} 42. fxe5 {[%emt 0:00:00]} Nc7 {[%emt 0:00:00]} 43. Bxb4 {[%emt 0:00:00]} Bh6 {[%emt 0:00:00]} 44. Bd6 {[%emt 0:00:00]} Na8 {[%emt 0:00:00]} 45. Nd8+ {[%emt 0:00:00]} Ke8 {[%emt 0:00:00]} 46. Nxe6 {[%emt 0:00:00]} Kd7 {[%emt 0:00:00]} 47. Nc5+ {[%emt 0:00:00]} Kc6 {[%emt 0:00:00]} 48. Kf2 {[%emt 0:00:00]} Nb6 {[%emt 0:00:00]} 49. Nd3 {[%emt 0:00:00]} Bg7 {[%emt 0:00:00]} 50. Nb4+ {[%emt 0:00:00]} Kb7 {[%emt 0:00:00]} 1-0

[Event "1000GM Spring Break Schev-A 2024"]
[Site "San Jose"]
[Date "2024.03.31"]
[Round "2.2"]
[White "Alarcon Bahamondez, Roberto Ignacio"]
[Black "Sivakumar, Shaashwath"]
[Result "1-0"]
[ECO "A07"]
[WhiteElo "2335"]
[BlackElo "2277"]
[Annotator "RC"]
[PlyCount "109"]
[EventDate "2024.03.28"]
[EventType "schev"]
[EventCountry "USA"]
[SourceTitle "playchess.com"]
[Source "ChessBase"]
[SourceQuality "1"]
[TimeControl "5400+30"]

1. Nf3 {[%emt 0:05:01]} d5 {[%emt 0:00:07]} 2. b3 {[%emt 0:00:24]} Nf6 {[%emt 0:00:06]} 3. Bb2 {[%emt 0:00:14]} Bf5 {[%emt 0:00:15]} 4. g3 {[%emt 0:00:13]} e6 {[%emt 0:00:04]} 5. Bg2 {[%emt 0:00:12]} Nbd7 {[%emt 0:00:07]} 6. O-O {[%emt 0:01:03]} h6 {[%emt 1:32:51]} 7. d3 {[%emt 0:00:44]} Be7 {[%emt 0:00:00]} 8. Nbd2 {[%emt 0:00:07]} O-O {[%emt 0:00:00]} 9. Ne5 {[%emt 0:01:19]} Bh7 {[%emt 0:00:00]} 10. Nxd7 {[%emt 0:02:30]} Nxd7 {[%emt 0:00:00]} 11. e4 {[%emt 0:00:20]} c6 {[%emt 0:00:00]} 12. Qe2 {[%emt 0:00:59]} a5 {[%emt 0:00:00]} 13. a4 {[%emt 0:00:23]} Bf6 {[%emt 0:00:00]} 14. e5 {[%emt 0:09:15]} Be7 {[%emt 0:00:00]} 15. f4 {[%emt 0:00:53]} b5 {[%emt 0:04:30]} 16. Bh3 {[%emt 0:21:06]} bxa4 {[%emt 0:00:00]} 17. Rxa4 {[%emt 0:05:32]} Nc5 {[%emt 0:00:00]} 18. Ra2 {[%emt 0:04:21]} a4 {[%emt 0:00:00]} 19. Rfa1 {[%emt 0:21:35]} Rb8 {[%emt 0:00:00]} 20. bxa4 {[%emt 0:03:36]} Nxa4 {[%emt 0:00:00]} 21. Bd4 {[%emt 0:00:39]} c5 {[%emt 0:00:00]} 22. Rxa4 {[%emt 0:00:11]} cxd4 {[%emt 0:00:00]} 23. Nb3 {[%emt 0:00:51]} Qb6 {[%emt 0:00:00]} 24. Kh1 {[%emt 0:04:17]} Rfc8 {[%emt 0:00:00]} 25. f5 {[%emt 0:01:26]} exf5 {[%emt 0:00:00]} 26. Nxd4 {[%emt 0:01:55]} g6 {[%emt 0:00:00]} 27. Nb3 {[%emt 0:02:59]} Bf8 {[%emt 0:00:00]} 28. Bg2 {[%emt 0:00:42]} Rd8 {[%emt 0:00:00]} 29. Ra6 {[%emt 0:00:18]} Qb4 {[%emt 0:00:00]} 30. Rc6 {[%emt 0:03:09]} Bg7 {[%emt 0:00:00]} 31. d4 {[%emt 0:00:20]} Qb7 {[%emt 0:00:00]} 32. Qa6 {[%emt 0:03:27]} Qb4 {[%emt 0:00:00]} 33. Qa5 {[%emt 0:00:11]} Bf8 {[%emt 0:00:00]} 34. Qxb4 {[%emt 0:00:42]} Bxb4 {[%emt 0:00:00]} 35. Rc7 {[%emt 0:00:46]} g5 {[%emt 0:10:00]} 36. Raa7 {[%emt 0:01:31]} Bg6 {[%emt 0:00:00]} 37. e6 {[%emt 0:01:39]} f4 {[%emt 0:00:00]} 38. gxf4 {[%emt 0:00:49]} gxf4 {[%emt 0:00:00]} 39. e7 {[%emt 0:00:50]} Rdc8 {[%emt 0:00:00]} 40. Rab7 {[%emt 0:01:04]} Kg7 {[%emt 0:00:00]} 41. Rxb4 {[%emt 0:00:20]} Rxc7 {[%emt 0:00:00]} 42. Rxb8 {[%emt 0:00:29]} Rxe7 {[%emt 0:00:00]} 43. Bxd5 {[%emt 0:01:31]} Bxc2 {[%emt 0:00:00]} 44. Nc5 {[%emt 0:02:37]} Re1+ {[%emt 0:02:00]} 45. Kg2 {[%emt 0:00:00]} Rd1 {[%emt 0:00:03]} 46. Rb4 {[%emt 0:01:00]} Bg6 {[%emt 0:01:39]} 47. Bf3 {[%emt 0:00:00]} Rd2+ {[%emt 0:00:15]} 48. Kg1 {[%emt 0:00:00]} Rc2 {[%emt 0:02:33]} 49. Be4 {[%emt 0:00:00]} Rc1+ {[%emt 0:00:00]} 50. Kf2 {[%emt 0:00:00]} Bh5 {[%emt 0:00:00]} 51. Rb2 {[%emt 0:00:13]} Rc4 {[%emt 0:00:49]} 52. Rd2 {[%emt 0:00:23]} Kf6 {[%emt 0:00:04]} 53. Bf3 {[%emt 0:00:30]} Bg6 {[%emt 0:00:07]} 54. Nd7+ {[%emt 0:00:42]} Ke6 {[%emt 0:00:21]} 55. Bd5+ {[%emt 0:00:46]} 1-0